bitfinex-derivatives/quotes_SOLF0:USTF0_20260306
["timestamp","ask_amount","ask_price","bid_price","bid_amount"]
[1772820794704,3.87071358,84.689,84.653,10.632]
[1772820795101,3.87071358,84.689,84.641,2.54904567]
[1772820795305,3.87071358,84.704,84.668,10.63]
[1772820795498,3.87071358,84.704,84.661,2.54904567]
[1772820795904,3.87071358,84.704,84.667,10.63]
[1772820796797,3.87071358,84.704,84.671,10.629]
[1772820798400,3.87071358,84.704,84.668,2.54777173]
[1772820798596,3.87071358,84.704,84.664,10.63]
[1772820799303,3.87071358,84.704,84.67,10.629]
[1772820799806,3.87071358,84.704,84.663,10.63]
[1772820801707,3.87071358,84.704,84.661,2.45796192]
[1772820801900,3.65176188,84.71,84.66,3.65176188]
[1772820802101,3.87071358,84.709,84.661,2.48114564]
[1772820802504,3.87071358,84.709,84.67,3.65176188]
[1772820802804,3.87071358,84.709,84.67,6.13071302]
[1772820803006,3.87071358,84.709,84.679,10.628]
[1772820803206,3.65176188,84.72,84.679,10.628]
[1772820803710,14.49471358,84.716,84.672,10.629]
[1772820804106,3.87071358,84.715,84.672,10.629]
[1772820804506,3.87071358,84.715,84.678,10.629]
[1772820804708,3.87071358,84.715,84.671,2.47496251]
[1772820805208,3.87071358,84.715,84.678,10.628]
[1772820805401,3.87071358,84.709,84.659,2.47496251]
[1772820805602,3.87071358,84.709,84.66,3.65176188]
[1772820805801,3.87071358,84.709,84.66,6.12672439]
[1772820806006,3.87071358,84.709,84.661,2.47496251]
[1772820806204,3.87071358,84.709,84.666,10.63]
[1772820806904,3.87071358,84.699,84.645,2.46992426]
[1772820807113,7.52247546,84.69,84.645,2.46992426]
[1772820807303,3.87071358,84.689,84.645,2.46992426]
[1772820807499,3.65176188,84.7,84.651,2.46992426]
[1772820807704,3.87071358,84.708,84.661,2.46992426]
[1772820808610,3.65176188,84.68,84.637,2.48466241]
[1772820808908,7.52247546,84.68,84.637,2.48466241]
[1772820809109,3.87071358,84.68,84.637,2.48466241]
[1772820809311,3.65176188,84.69,84.637,2.48466241]
[1772820810408,3.65176188,84.69,84.641,2.42533364]
[1772820810912,3.65176188,84.68,84.641,2.42533364]
[1772820811515,3.87071358,84.689,84.641,2.42533364]
[1772820812112,3.7496998,84.702,84.66,3.65176188]
[1772820812514,3.7496998,84.702,84.661,2.44682162]
[1772820813620,3.7496998,84.702,84.665,10.63]
[1772820813813,3.7496998,84.717,84.665,13.07682162]
[1772820814019,3.7496998,84.709,84.665,13.07682162]
[1772820814818,3.7496998,84.709,84.672,10.629]
[1772820816017,3.7496998,84.709,84.665,2.44682162]
[1772820817214,3.7496998,84.709,84.676,10.629]
[1772820817521,3.7496998,84.709,84.609,41.05050976]
[1772820817522,3.65176188,84.72,84.671,2.40365058]
[1772820817714,3.7496998,84.721,84.671,2.40365058]
[1772820817917,3.7496998,84.721,84.683,10.628]
[1772820818919,3.65176188,84.73,84.691,10.627]
[1772820818920,288.12398072,84.718,84.691,10.627]
[1772820819115,3.7496998,84.739,84.691,2.40060506]
[1772820820218,3.7496998,84.739,84.697,13.02660506]
[1772820820414,3.7496998,84.739,84.69,3.65176188]
[1772820820415,3.7496998,84.748,84.701,2.45743843]
[1772820821022,3.65176188,84.74,84.701,2.45743843]
[1772820821224,3.65176188,84.74,84.703,10.625]
[1772820821413,3.7496998,84.748,84.703,10.625]
[1772820821818,3.65176188,84.76,84.711,13.08143843]
[1772820822014,3.7496998,84.758,84.712,2.45743843]
[1772820822222,9.61367361,84.769,84.721,2.45743843]
[1772820822524,9.61367361,84.768,84.721,2.45743843]
[1772820822725,3.7496998,84.773,84.721,2.45743843]
[1772820823223,3.7496998,84.773,84.669,21.26]
[1772820823224,3.7496998,84.759,84.71,3.65176188]
[1772820823422,3.7496998,84.759,84.669,21.26]
[1772820823423,7.40146168,84.77,84.721,2.52422427]
[1772820823630,3.7496998,84.769,84.721,2.52422427]
[1772820824421,3.7496998,84.769,84.724,10.623]
[1772820825027,3.7496998,84.769,84.724,13.15345421]
[1772820826028,3.65176188,84.76,84.724,2.53045421]
[1772820826327,3.7496998,84.769,84.724,2.53045421]
[1772820826728,3.7496998,84.769,84.733,10.622]
[1772820827124,3.7496998,84.786,84.741,2.52034185]
[1772820827430,3.7496998,84.786,84.731,2.52034185]
[1772820828228,3.7496998,84.786,84.744,2.52034185]
[1772820829327,7.20502245,84.814,84.76,6.19011105]
[1772820829522,7.20502245,84.809,84.76,6.19011105]
[1772820829723,7.20502245,84.809,84.76,2.53834917]
[1772820829926,3.65176188,84.8,84.76,2.53834917]
[1772820830425,7.20502245,84.809,84.76,13.15634917]
[1772820831631,3.65176188,84.8,84.76,13.15634917]
[1772820831827,7.22448396,84.799,84.75,10.619]
[1772820832030,7.22448396,84.799,84.75,3.65176188]
[1772820832226,7.22448396,84.824,84.759,10.618]
[1772820832430,7.28360662,84.809,84.76,3.65176188]
[1772820832631,7.28360662,84.799,84.75,3.65176188]
[1772820833130,7.28360662,84.799,84.756,10.619]
[1772820833334,10.96310589,84.858,84.743,311.41353406]
[1772820833335,3.65176188,84.81,84.76,3.65176188]
[1772820834031,10.9353685,84.81,84.76,3.65176188]
[1772820834234,7.28360662,84.809,84.76,3.65176188]
[1772820834834,3.65176188,84.83,84.781,0.80465836]
[1772820835130,3.65176188,84.81,84.76,3.65176188]
[1772820835325,3.65176188,84.81,84.766,10.617]
[1772820835727,3.65176188,84.8,84.744,0.80748342]
[1772820835931,3.65176188,84.8,84.753,11.42648342]
[1772820836632,3.64154289,84.8,84.753,11.42648342]
[1772820836832,3.95805637,84.799,84.753,11.42648342]
[1772820837728,3.95805637,84.789,84.744,10.62]
[1772820838832,7.59959926,84.78,84.743,311.41353406]
[1772820839530,3.95805637,84.779,84.743,311.41353406]
[1772820839728,3.64154289,84.77,84.734,10.621]
[1772820840334,3.95805637,84.769,84.726,0.93128527]
[1772820840725,3.95805637,84.769,84.734,10.621]
[1772820841830,3.95805637,84.769,84.726,0.93128527]
[1772820842535,3.74847786,84.779,84.73,3.64154289]
[1772820842738,3.74847786,84.759,84.712,0.87370642]
[1772820842929,3.64154289,84.75,84.712,0.87370642]
[1772820843134,3.74847786,84.759,84.712,0.87370642]
[1772820843438,3.74847786,84.799,84.746,0.87370642]
[1772820843831,3.74847786,84.789,84.74,3.64154289]
[1772820844031,3.74847786,84.789,84.749,10.62]
[1772820845436,3.74847786,84.779,84.73,3.64154289]
[1772820845635,3.74847786,84.779,84.721,0.90369874]
[1772820846134,3.74847786,84.779,84.741,10.621]
[1772820847741,3.64154289,84.77,84.732,10.622]
[1772820847939,3.74847786,84.779,84.732,10.622]
[1772820848436,3.74847786,84.779,84.74,10.621]
[1772820848641,3.74847786,84.779,84.721,0.90369874]
[1772820849442,3.74847786,84.779,84.732,10.622]
[1772820850438,10.616,84.778,84.722,10.623]
[1772820850643,3.74847786,84.759,84.711,1.36571666]
[1772820851044,3.74847786,84.759,84.721,10.623]
[1772820851848,3.74847786,84.759,84.729,10.622]
[1772820852947,3.74847786,84.759,84.721,10.623]
[1772820853150,3.74847786,84.759,84.711,1.36571666]
[1772820853347,3.74847786,84.749,84.701,1.35340027]
[1772820853744,3.74847786,84.749,84.716,10.624]
[1772820854448,3.74847786,84.759,84.724,10.623]
[1772820855843,3.74847786,84.769,84.724,11.97044385]
[1772820856645,3.64154289,84.76,84.724,1.34744385]
[1772820857542,3.74847786,84.766,84.724,1.34744385]
[1772820858848,3.74847786,84.766,84.728,10.622]
[1772820860449,3.74847786,84.766,84.72,10.623]
[1772820860750,10.96310589,84.807,84.72,10.623]
[1772820860751,3.74847786,84.759,84.72,10.623]
[1772820860945,3.74847786,84.759,84.713,10.624]
[1772820861346,3.74847786,84.759,84.712,1.28782279]
[1772820861546,3.74847786,84.759,84.719,10.623]
[1772820863242,10.619,84.757,84.714,10.624]
[1772820863445,3.74847786,84.756,84.712,1.28782279]
[1772820863849,3.74847786,84.756,84.727,10.622]
[1772820864245,3.74847786,84.756,84.712,1.28782279]
[1772820864639,3.74847786,84.756,84.729,10.622]
[1772820865040,3.74847786,84.756,84.712,1.28782279]
[1772820865241,3.74847786,84.756,84.719,10.623]
[1772820866339,3.74847786,84.756,84.719,11.93443472]
[1772820866541,3.74847786,84.756,84.726,10.622]
[1772820866941,3.74847786,84.769,84.726,10.622]
[1772820867139,3.74847786,84.769,84.732,10.622]
[1772820867344,3.74847786,84.779,84.731,1.31143472]
[1772820867851,3.74847786,84.779,84.745,10.62]
[1772820868051,3.74847786,84.779,84.741,1.31143472]
[1772820868250,3.64154289,84.8,84.714,21.248]
[1772820868251,3.74847786,84.798,84.751,1.31143472]
[1772820868946,3.74847786,84.789,84.7,198.52208572]
[1772820869145,3.74847786,84.769,84.715,1.31284441]
[1772820869352,3.74847786,84.759,84.715,1.31284441]
[1772820869752,3.74847786,84.759,84.718,10.623]
[1772820870349,3.74847786,84.759,84.715,1.31284441]
[1772820870754,3.74847786,84.739,84.696,1.24385239]
[1772820873854,3.74847786,84.739,84.702,10.625]
[1772820874062,3.64154289,84.75,84.701,1.3087824]
[1772820874464,7.31338557,84.75,84.701,1.3087824]
[1772820874770,7.31338557,84.75,84.708,10.625]
[1772820874771,3.67184268,84.749,84.708,10.625]
[1772820875555,3.67184268,84.749,84.714,10.624]
[1772820876063,3.67184268,84.763,84.72,3.64154289]
[1772820876262,3.67184268,84.763,84.728,10.622]
[1772820876666,3.67184268,84.759,84.711,1.30602071]
[1772820876861,3.67184268,84.759,84.72,10.623]
[1772820877064,3.67184268,84.759,84.711,1.30602071]
[1772820877268,3.67184268,84.759,84.72,3.64154289]
[1772820877767,3.67184268,84.759,84.728,10.622]
[1772820879166,3.67184268,84.759,84.721,10.623]
[1772820880362,3.67184268,84.759,84.712,10.624]
[1772820880562,3.67184268,84.759,84.711,1.30602071]
[1772820881270,3.67184268,84.759,84.724,10.623]
[1772820881766,3.67184268,84.759,84.711,1.30602071]
[1772820882670,3.67184268,84.759,84.712,1.30387573]
[1772820883371,3.67184268,84.759,84.724,10.623]
[1772820883964,3.67184268,84.759,84.71,10.624]
[1772820884169,3.67184268,84.759,84.71,3.64154289]
[1772820884370,3.67184268,84.759,84.71,4.94541862]
[1772820884675,3.67184268,84.759,84.711,1.30898139]
[1772820884969,3.67184268,84.757,84.716,10.624]
[1772820885571,3.67184268,84.754,84.711,1.30898139]
[1772820886366,3.67184268,84.754,84.72,3.64154289]
[1772820886870,3.67184268,84.754,84.72,14.26454289]
[1772820890375,3.67184268,84.769,84.722,1.30760829]
[1772820890573,3.67184268,84.767,84.722,1.30760829]
[1772820891072,3.67184268,84.766,84.729,10.622]
[1772820891271,3.67184268,84.766,84.722,1.30760829]
[1772820891870,3.67184268,84.766,84.728,10.622]
[1772820892171,3.67184268,84.766,84.73,3.64154289]
[1772820892372,3.67184268,84.766,84.73,4.95267839]
[1772820893363,3.67184268,84.779,84.74,3.64154289]
[1772820893776,3.67184268,84.777,84.74,3.64154289]
[1772820894069,3.67184268,84.787,84.75,3.64154289]
[1772820894572,3.67184268,84.784,84.741,1.30934856]
[1772820895473,3.67184268,84.784,84.75,3.64154289]
[1772820895869,3.67184268,84.784,84.741,1.30934856]
[1772820896079,3.93752156,84.779,84.73,4.95841169]
[1772820896267,3.93752156,84.779,84.73,1.3168688]
[1772820896466,21.223,84.816,84.66,36.36264823]
[1772820896467,3.93752156,84.805,84.75,3.64154289]
[1772820896664,10.96310589,84.808,84.741,1.27259462]
[1772820896665,3.93752156,84.79,84.744,10.62]
[1772820896869,3.93752156,84.788,84.73,4.91413751]
[1772820897069,3.93752156,84.786,84.73,4.91413751]
[1772820897874,3.93752156,84.778,84.73,4.91413751]
[1772820898468,3.93752156,84.778,84.73,4.91521005]
[1772820898667,3.93752156,84.775,84.732,10.622]
[1772820899076,3.93752156,84.775,84.732,11.88124544]
[1772820899279,3.93752156,84.775,84.734,10.621]
[1772820899777,3.93752156,84.775,84.734,11.88024544]
[1772820900075,3.93752156,84.775,84.737,10.621]
[1772820900281,3.93752156,84.787,84.741,1.25924544]
[1772820900470,3.93752156,84.8,84.751,1.26717026]
[1772820900982,3.64261543,84.79,84.74,3.64261543]
[1772820901173,3.93752156,84.789,84.74,3.64261543]
[1772820901478,3.93752156,84.789,84.75,3.64261543]
[1772820901875,3.93752156,84.789,84.74,3.64261543]
[1772820902278,3.66301596,84.787,84.741,10.621]
[1772820902480,3.66301596,84.787,84.751,1.25270463]
[1772820902677,3.66301596,84.799,84.76,3.64261543]
[1772820902879,3.66301596,84.799,84.761,1.25270463]
[1772820903079,3.66301596,84.799,84.77,3.64261543]
[1772820903677,3.64261543,84.81,84.767,11.86970463]
[1772820903873,3.66301596,84.813,84.771,1.25270463]
[1772820905577,3.66301596,84.809,84.76,3.64261543]
[1772820905883,3.66301596,84.809,84.758,1.22041904]
[1772820906075,3.66301596,84.807,84.758,1.22041904]
[1772820906681,3.66301596,84.807,84.76,3.64261543]
[1772820906882,3.64261543,84.81,84.724,21.246]
[1772820906883,3.66301596,84.805,84.75,3.64261543]
[1772820907280,3.66301596,84.805,84.751,1.20959695]
[1772820907783,3.66301596,84.794,84.751,1.20959695]
[1772820910381,3.66301596,84.785,84.74,3.64261543]
[1772820910588,3.66301596,84.779,84.738,1.14225458]
[1772820911189,10.616,84.777,84.738,1.14225458]
[1772820911589,3.66301596,84.779,84.72,3.64261543]
[1772820911789,3.66301596,84.779,84.721,1.14320543]
[1772820912186,10.617,84.771,84.721,1.14320543]
[1772820912398,3.66301596,84.769,84.721,1.14320543]
[1772820913100,3.66301596,84.766,84.725,10.623]
[1772820913395,3.64261543,84.77,84.721,1.14320543]
[1772820913590,7.30563139,84.78,84.731,1.15207517]
[1772820913792,3.66301596,84.779,84.731,1.15207517]
[1772820914700,3.66301596,84.779,84.735,10.621]
[1772820915805,3.66301596,84.779,84.741,1.10961994]
[1772820916302,3.66301596,84.779,84.742,10.62]
[1772820917404,3.66301596,84.779,84.734,10.621]
[1772820918200,10.615,84.789,84.744,1.14882648]
[1772820918201,3.66301596,84.789,84.744,1.14882648]
[1772820918606,3.66301596,84.779,84.731,1.14558839]
[1772820918901,3.66301596,84.769,84.72,3.64261543]
[1772820919306,3.66301596,84.769,84.721,1.14558839]
[1772820919906,3.66301596,84.769,84.726,10.622]
[1772820921410,3.66301596,84.769,84.733,10.622]
[1772820921808,3.66301596,84.769,84.726,1.18910909]
[1772820922404,3.66301596,84.769,84.73,3.64261543]
[1772820922605,3.66301596,84.786,84.731,1.17046507]
[1772820923303,3.66301596,84.784,84.731,1.17046507]
[1772820923704,3.66301596,84.784,84.704,21.251]
[1772820923705,3.66301596,84.784,84.741,1.17046507]
[1772820924107,3.66301596,84.784,84.75,3.64261543]
[1772820924507,3.66301596,84.784,84.741,1.17046507]
[1772820924908,3.66301596,84.784,84.753,10.619]
[1772820925106,3.66301596,84.799,84.75,3.64261543]
[1772820925311,3.66301596,84.799,84.76,10.618]
[1772820926508,3.66301596,84.799,84.751,11.81042361]
[1772820927015,3.66301596,84.799,84.751,1.19142361]
[1772820927413,3.66301596,84.799,84.763,10.618]
[1772820927713,3.66301596,84.811,84.764,1.17290548]
[1772820928010,289.06476732,84.82,84.74,3.64261543]
[1772820928011,3.66301596,84.789,84.74,3.64261543]
[1772820928214,3.66301596,84.789,84.74,4.81552091]
[1772820928415,3.66301596,84.779,84.73,3.64261543]
[1772820928815,3.66301596,84.769,84.726,11.79490548]
[1772820929919,14.28001596,84.767,84.726,11.79490548]
[1772820930220,3.66301596,84.759,84.718,10.623]
[1772820930516,3.66301596,84.778,84.721,1.15346681]
[1772820930709,3.66301596,84.759,84.71,3.64261543]
[1772820930918,3.66301596,84.759,84.71,4.79608224]
[1772820931315,3.66301596,84.759,84.711,1.15346681]
[1772820931717,10.619,84.751,84.711,11.77746681]
[1772820932018,10.619,84.751,84.711,1.15346681]
[1772820932219,7.31393786,84.75,84.711,1.15346681]
[1772820932519,7.31393786,84.75,84.703,1.35398662]
[1772820932520,14.29132243,84.746,84.703,1.35398662]
[1772820932724,3.67132243,84.746,84.703,1.35398662]
[1772820933314,3.64261543,84.76,84.705,1.35398662]
[1772820933519,3.67132243,84.759,84.705,1.35398662]
[1772820934316,3.64261543,84.75,84.705,1.35398662]
[1772820934821,3.67132243,84.749,84.71,10.624]
[1772820935121,3.67132243,84.749,84.705,1.35398662]
[1772820936318,3.67132243,84.747,84.694,10.626]
[1772820936522,3.67132243,84.747,84.695,1.34535897]
[1772820938721,3.67132243,84.76,84.71,1.32154602]
[1772820938928,3.67132243,84.76,84.72,3.64261543]
[1772820939127,3.67132243,84.76,84.721,1.32154602]
[1772820939924,3.67132243,84.76,84.728,10.622]
[1772820941128,3.67132243,84.774,84.736,10.621]
[1772820941428,3.67132243,84.803,84.732,1.11245528]
[1772820941632,3.67132243,84.789,84.74,4.75507071]
[1772820941927,3.67132243,84.789,84.74,1.11245528]
[1772820942329,3.67132243,84.789,84.744,10.62]
[1772820942633,3.67132243,84.789,84.74,1.11245528]
[1772820943526,3.67132243,84.779,84.73,3.64261543]
[1772820943727,3.67132243,84.779,84.736,10.621]
[1772820944436,3.67132243,84.769,84.727,11.73711502]
[1772820945131,3.67132243,84.769,84.734,10.621]
[1772820946333,3.64261543,84.78,84.734,11.73130153]
[1772820946834,3.67132243,84.769,84.727,10.622]
[1772820949034,3.67132243,84.769,84.72,11.73263818]
[1772820949236,3.64261543,84.76,84.721,1.11728]
[1772820949434,3.64261543,84.76,84.724,10.623]
[1772820950231,3.64261543,84.76,84.721,1.11728]
[1772820951333,3.64261543,84.76,84.723,11.74020427]
[1772820951533,3.67132243,84.767,84.724,1.11720427]
[1772820951838,14.28832243,84.767,84.724,1.11720427]
[1772820952039,3.64261543,84.77,84.724,1.11720427]
[1772820952040,3.67132243,84.766,84.724,1.11720427]
[1772820952738,10.618,84.765,84.724,1.11720427]
[1772820953037,14.28932243,84.765,84.724,1.11720427]
[1772820953237,3.67132243,84.765,84.726,10.622]
[1772820953438,3.67132243,84.765,84.727,1.11981014]
[1772820953832,3.67132243,84.777,84.73,3.64261543]
[1772820954028,3.67132243,84.777,84.73,1.11981014]
[1772820954836,3.67132243,84.777,84.73,11.74181014]
[1772820955138,3.67132243,84.759,84.716,1.12101976]
[1772820955638,3.67132243,84.759,84.728,10.622]
[1772820955835,3.67132243,84.759,84.716,1.12101976]
[1772820956036,3.67132243,84.759,84.721,1.12007313]
[1772820956232,3.67132243,84.759,84.722,1.12007313]
[1772820956641,4.02727631,84.772,84.722,1.12007313]
[1772820957442,4.02727631,84.772,84.736,10.621]
[1772820957732,3.64261543,84.78,84.733,1.11892593]
[1772820957928,4.02727631,84.784,84.742,10.62]
[1772820959327,10.615,84.788,84.73,3.6422182]
[1772820959328,4.02727631,84.779,84.735,1.13157833]
[1772820959529,4.02727631,84.779,84.721,1.13157833]
[1772820959730,4.02727631,84.769,84.721,1.13157833]
[1772820960236,4.02727631,84.769,84.729,10.622]
[1772820962343,3.88148428,84.792,84.741,1.0808621]
[1772820962641,3.88148428,84.792,84.751,1.06256603]
[1772820962837,3.88148428,84.789,84.751,1.06256603]
[1772820963142,3.88148428,84.779,84.721,1.06256603]
[1772820963439,3.88148428,84.779,84.738,10.621]
[1772820964537,3.88148428,84.779,84.744,10.62]
[1772820964741,3.88148428,84.779,84.744,0.98545712]
[1772820964945,3.88148428,84.779,84.726,0.98545712]
[1772820965739,3.88148428,84.779,84.737,10.621]
[1772820967246,3.88148428,84.769,84.73,0.95755854]
[1772820967649,3.88148428,84.785,84.731,0.95755854]
[1772820967946,3.88148428,84.779,84.731,0.95755854]
[1772820968846,3.88148428,84.779,84.737,10.621]
[1772820969041,3.88148428,84.779,84.731,0.95755854]
[1772820970142,3.6422182,84.79,84.744,0.9631304]
[1772820970347,3.88148428,84.793,84.751,0.9631304]
[1772820970544,3.88148428,84.808,84.761,1.13914956]
[1772820971138,3.88148428,84.808,84.764,1.13914956]
[1772820972052,3.88148428,84.808,84.767,10.617]
[1772820972747,3.88148428,84.808,84.775,10.616]
[1772820973143,285.42215189,84.82,84.78,4.77664219]
[1772820973346,285.42215189,84.82,84.788,1.13442399]
[1772820974844,285.42215189,84.82,84.789,10.615]
[1772820976058,285.42215189,84.82,84.788,1.13442399]
[1772820976545,460.6556265,84.833,84.79,3.6422182]
[1772820976750,3.88148428,84.829,84.78,3.6422182]
[1772820976950,3.88148428,84.829,84.773,1.12961471]
[1772820977550,3.88148428,84.829,84.788,10.615]
[1772820978153,3.6422182,84.83,84.78,3.6422182]
[1772820978154,3.88148428,84.832,84.794,10.614]
[1772820978649,3.88148428,84.829,84.78,4.77183291]
[1772820979250,3.88148428,84.829,84.79,3.6422182]
[1772820979452,3.88148428,84.829,84.79,4.73589869]
[1772820980154,3.88148428,84.839,84.8,10.613]
[1772820980356,3.88148428,84.839,84.801,1.09368049]
[1772820980553,3.6422182,84.83,84.788,1.10882794]
[1772820980758,3.88148428,84.819,84.773,1.10882794]
[1772820981052,13.88009403,84.865,84.748,318.15904095]
[1772820981053,3.88148428,84.809,84.761,1.10882794]
[1772820981257,3.6422182,84.81,84.781,10.616]
[1772820981548,3.6422182,84.81,84.761,1.10882794]
[1772820981549,7.52370248,84.81,84.761,1.10882794]
[1772820981744,3.88148428,84.809,84.765,10.618]
[1772820984757,3.88148428,84.799,84.755,10.619]
[1772820985450,3.88148428,84.795,84.748,318.15904095]
[1772820985652,3.88148428,84.779,84.721,1.04102993]
[1772820985945,3.88148428,84.759,84.708,1.04102993]
[1772820986153,3.6422182,84.75,84.708,1.04102993]
[1772820986349,3.6422182,84.75,84.715,10.624]
[1772820986656,3.6422182,84.74,84.708,1.04102993]
[1772820986950,3.88148428,84.749,84.672,21.259]
[1772820986951,3.88148428,84.749,84.7,3.6422182]
[1772820987154,3.88148428,84.749,84.701,1.03421957]
[1772820987553,3.88148428,84.739,84.687,1.03421957]
[1772820987752,3.88148428,84.739,84.691,1.03421957]
[1772820988152,3.6422182,84.75,84.711,10.624]
[1772820988351,3.88148428,84.754,84.711,1.00474142]
[1772820989253,3.6422182,84.76,84.711,1.00474142]
[1772820989857,3.88148428,84.769,84.711,1.00474142]
[1772820990355,3.88148428,84.769,84.72,3.6422182]
[1772820990854,3.88148428,84.769,84.711,1.00474142]
[1772820991054,3.88148428,84.769,84.721,10.623]
[1772820991253,3.88148428,84.769,84.711,1.00474142]
[1772820991458,3.6422182,84.74,84.691,0.98810723]
[1772820992464,3.86075663,84.739,84.691,0.98810723]
[1772820992863,3.86075663,84.739,84.695,10.626]
[1772820994263,3.86075663,84.739,84.704,10.625]
[1772820994860,3.86075663,84.739,84.696,10.626]
[1772820996863,3.86075663,84.729,84.681,10.628]
[1772820997361,3.86075663,84.729,84.696,10.626]
[1772820997563,3.6422182,84.74,84.691,1.03472862]
[1772820997762,7.50297483,84.74,84.691,1.03472862]
[1772820997964,3.86075663,84.739,84.695,10.626]
[1772821000966,3.86075663,84.739,84.702,10.626]
[1772821001565,3.86075663,84.739,84.691,1.03472862]
[1772821002366,3.86075663,84.753,84.701,0.9774634]
[1772821002564,3.86075663,84.753,84.71,3.6422182]
[1772821002870,3.86075663,84.749,84.701,0.9774634]
[1772821003263,3.6422182,84.76,84.711,0.97845871]
[1772821003472,3.6422182,84.76,84.717,10.624]
[1772821003672,7.50297483,84.76,84.717,10.624]
[1772821003872,3.86075663,84.759,84.717,10.624]
[1772821004167,3.86075663,84.759,84.724,10.623]
[1772821005170,3.86075663,84.749,84.701,0.99614642]
[1772821006770,3.86075663,84.739,84.697,10.626]
[1772821007174,3.86075663,84.739,84.703,10.625]
[1772821007970,3.86075663,84.739,84.695,10.626]
[1772821008372,3.86075663,84.739,84.69,0.99448536]
[1772821008578,3.86075663,84.729,84.687,10.627]
[1772821009774,3.86075663,84.719,84.676,0.97846624]
[1772821010176,3.6422182,84.73,84.68,4.62068444]
[1772821010371,3.86075663,84.729,84.681,0.94640553]
[1772821011771,3.86075663,84.744,84.691,0.94640553]
[1772821012372,3.86075663,84.739,84.69,3.6422182]
[1772821012567,3.86075663,84.729,84.677,0.95174445]
[1772821012772,3.86075663,84.719,84.677,0.95174445]
[1772821013079,3.86075663,84.719,84.67,3.6422182]
[1772821013570,3.86075663,84.716,84.67,10.63]
[1772821014167,3.86075663,84.716,84.67,14.2722182]
[1772821014565,3.6422182,84.72,84.663,0.95174445]
[1772821014566,3.86075663,84.714,84.663,0.95174445]
[1772821014767,3.86075663,84.709,84.663,0.95174445]
[1772821014973,3.86075663,84.709,84.66,3.6422182]
[1772821015171,3.86075663,84.709,84.65,3.6422182]
[1772821015372,3.63868519,84.707,84.661,10.631]
[1772821017181,3.63868519,84.707,84.67,3.6422182]
[1772821017379,3.63868519,84.707,84.665,0.98173265]
[1772821019580,3.63868519,84.707,84.63,9.12270362]
[1772821019581,3.63868519,84.707,84.644,0.95890166]
[1772821020378,3.63868519,84.699,84.644,0.95890166]
[1772821020579,3.63868519,84.713,84.644,0.95890166]
[1772821021184,3.63868519,84.709,84.657,10.631]
[1772821021379,3.63868519,84.709,84.644,0.95890166]
[1772821021380,3.63868519,84.709,84.63,0.90405476]
[1772821021583,11.62286671,84.738,84.587,21.28]
[1772821021584,3.63868519,84.689,84.616,0.90405476]
[1772821022781,3.81902905,84.699,84.616,0.90405476]
[1772821023279,3.81902905,84.674,84.625,10.635]
[1772821023479,3.81902905,84.674,84.593,3.68263954]
[1772821024382,14.44902905,84.663,84.612,10.637]
[1772821024786,9.12436333,84.68,84.613,3.68263954]
[1772821024985,462.02136019,84.696,84.565,321.47759873]
[1772821024986,3.81902905,84.679,84.627,3.68263954]
[1772821025287,462.02136019,84.696,84.627,3.68263954]
[1772821025288,3.81902905,84.695,84.627,3.68263954]
[1772821025780,3.81902905,84.695,84.643,3.68263954]
[1772821027283,10.627,84.687,84.643,3.68263954]
[1772821027788,3.81902905,84.695,84.643,3.68263954]
[1772821028288,3.81902905,84.695,84.644,3.68263954]
[1772821028883,10.627,84.692,84.644,3.68263954]
[1772821029982,3.81902905,84.691,84.62,9.12436333]
[1772821030181,3.81902905,84.678,84.621,3.68263954]
[1772821030378,3.81902905,84.678,84.629,3.68263954]
[1772821031188,3.81902905,84.678,84.645,10.633]
[1772821031386,462.02136019,84.696,84.646,3.68263954]
[1772821031685,465.84038924,84.696,84.646,3.68263954]
[1772821032092,465.84038924,84.696,84.651,10.632]
[1772821032291,465.84038924,84.696,84.646,3.68263954]
[1772821033386,3.81902905,84.696,84.646,3.68263954]
[1772821033590,10.626,84.695,84.648,10.632]
[1772821033982,10.625,84.703,84.662,10.63]
[1772821034688,14.44402905,84.703,84.654,3.68263954]
[1772821035192,9.12436333,84.73,84.64,9.12436333]
[1772821035193,10.624,84.712,84.659,3.68263954]
[1772821035488,10.624,84.712,84.596,11.82]
[1772821035489,3.81902905,84.717,84.661,3.68263954]
[1772821036582,10.624,84.715,84.664,10.63]
[1772821036786,3.81902905,84.714,84.665,3.68263954]
[1772821037182,3.81902905,84.688,84.641,3.68263954]
[1772821039194,3.81902905,84.688,84.621,3.68263954]
[1772821039596,10.629,84.676,84.631,10.634]
[1772821039794,3.81902905,84.688,84.621,3.68263954]